bitfinex-derivatives/quotes_ETHF0:USTF0_20250904
["timestamp","ask_amount","ask_price","bid_price","bid_amount"]
[1756997790186,2.1665,4346.3,4346.2,3.2078]
[1756997790384,2.1665,4346.3,4346.2,4.6616]
[1756997790587,1.5381,4346.3,4346.2,5.5938]
[1756997790887,1.5381,4346.3,4346.2,2.386]
[1756997791086,1.5381,4346.3,4346.2,1.4538]
[1756997791288,2.1665,4346.3,4346.2,1.4538]
[1756997791796,2.1665,4346.3,4346.2,0.241]
[1756997792387,3.2078,4346.9,4346.2,0.241]
[1756997792388,4.1738,4346.9,4346.2,2.386]
[1756997792590,4.7459,4346.9,4346.8,1.2128]
[1756997792793,4.7459,4346.9,4346.8,0.8345]
[1756997792794,5.3743,4346.9,4346.8,0.8345]
[1756997792993,5.3743,4346.9,4346.8,0.241]
[1756997793392,1.2005,4346.4,4345.9,4.1046944]
[1756997793596,2.1665,4346.3,4346.2,0.241]
[1756997793993,2.1665,4346.3,4346.2,0.8345]
[1756997794198,2.1665,4346.3,4346.2,0.241]
[1756997794699,2.1665,4346.3,4346.2,0.8345]
[1756997795702,2.1665,4346.3,4346.2,0.241]
[1756997796294,2.1665,4346.3,4346.2,1.4538]
[1756997796495,1.5381,4346.3,4346.2,2.386]
[1756997797190,0.966,4346.8,4346.2,6.4906944]
[1756997797696,1.5381,4346.6,4346.5,4.4206]
[1756997797895,1.5381,4346.6,4346.5,4.6616]
[1756997798095,2.1665,4346.6,4346.5,4.6616]
[1756997798295,0.966,4346.9,4346.5,4.6616]
[1756997798496,2.1665,4346.9,4346.8,0.5935]
[1756997798696,1.5381,4346.9,4346.8,2.386]
[1756997799302,1.5381,4346.9,4346.8,1.4538]
[1756997799498,2.1665,4346.9,4346.8,0.241]
[1756997800297,2.1665,4346.9,4346.8,0.8345]
[1756997800703,3.5635,4347.5,4346.8,2.386]
[1756997801000,0.966,4347.4,4347.3,6.2496944]
[1756997801207,0.966,4347.4,4347.3,6.4896944]
[1756997801997,1.5381,4347.4,4347.3,6.4896944]
[1756997802202,0.9272,4347.3,4347.2,2.06019457]
[1756997802401,2.168,4347.3,4347.2,2.30019457]
[1756997802891,2.168,4347.3,4347.2,3.57579457]
[1756997803092,0.9272,4347.3,4347.2,4.47309457]
[1756997803299,0.9272,4347.5,4347.4,1.2756]
[1756997803498,1.5422,4347.5,4347.4,4.23515169]
[1756997804102,2.5444,4347.5,4347.4,3.33785169]
[1756997804505,2.5444,4347.5,4347.4,2.06252958]
[1756997804701,2.5444,4347.5,4347.4,2.30252958]
[1756997805306,2.5444,4347.5,4347.4,0.24]
[1756997805807,5.7522,4347.5,4347.4,2.30278735]
[1756997806408,5.7522,4347.5,4347.4,0.24]
[1756997806705,7.5842,4347.5,4347.4,2.06159568]
[1756997806910,5.7522,4347.5,4347.1,2.30159568]
[1756997807211,2.168,4347.2,4347.1,2.30159568]
[1756997807403,2.168,4347.2,4347.1,2.92889568]
[1756997807610,2.168,4347.2,4347.1,2.06159568]
[1756997807809,2.168,4347.2,4347.1,0.241]
[1756997808205,2.168,4347.2,4347.1,2.30259568]
[1756997808508,2.168,4347.2,4347.1,0.241]
[1756997809402,2.5444,4347.0,4346.9,2.06159568]
[1756997809606,5.7522,4347.0,4346.9,0.241]
[1756997810509,5.7522,4347.0,4346.9,0.8683]
[1756997811002,5.7522,4347.0,4346.9,0.241]
[1756997811603,5.7522,4347.0,4346.9,0.8683]
[1756997813016,5.7522,4347.0,4346.9,1.5166]
[1756997814120,5.7522,4347.0,4346.9,0.8683]
[1756997814616,5.7522,4347.0,4346.9,1.5166]
[1756997815010,1.5422,4347.0,4346.9,2.4139]
[1756997815409,1.5422,4347.0,4346.9,1.5166]
[1756997815606,1.9186,4347.0,4346.9,1.5166]
[1756997815914,2.5444,4347.0,4346.9,1.5166]
[1756997816121,2.5444,4347.0,4346.9,0.8683]
[1756997817528,2.5444,4347.0,4346.9,3.75656237]
[1756997817817,2.5444,4347.0,4346.9,3.12926237]
[1756997818324,2.5444,4347.0,4346.9,0.241]
[1756997818917,2.5444,4347.0,4346.9,0.8683]
[1756997819118,2.5444,4347.0,4346.9,1.5166]
[1756997819417,2.5444,4347.0,4346.9,0.8683]
[1756997820227,2.5444,4347.0,4346.9,1.5166]
[1756997820524,1.5422,4347.0,4346.9,2.4139]
[1756997820719,3.5842,4347.5,4347.3,2.1729]
[1756997820720,1.5422,4347.4,4347.3,2.1729]
[1756997820922,3.2078,4348.0,4347.4,0.8973]
[1756997821122,4.4486,4348.0,4347.9,2.1729]
[1756997821425,1.2408,4348.0,4347.9,2.4129]
[1756997821822,3.5635,4348.5,4348.0,0.3757]
[1756997822019,4.4486,4348.5,4348.4,2.1729]
[1756997822325,4.4486,4348.5,4348.4,0.8673]
[1756997822522,4.4486,4348.5,4348.4,0.29049703]
[1756997822721,4.4486,4348.5,4348.4,0.8673]
[1756997822913,2.168,4348.5,4348.4,6.5175944]
[1756997823119,1.5422,4348.8,4348.7,1.2756]
[1756997823318,2.168,4348.8,4348.7,3.5742758]
[1756997824324,2.168,4348.8,4348.7,1.5156]
[1756997824916,2.168,4348.8,4348.7,2.4129]
[1756997825725,2.168,4348.8,4348.7,0.24]
[1756997826320,2.168,4348.8,4348.7,0.8673]
[1756997826526,2.168,4348.8,4348.7,1.5156]
[1756997826722,2.168,4348.8,4348.7,2.4129]
[1756997826925,2.168,4348.8,4348.7,4.4715758]
[1756997827126,2.168,4348.8,4348.7,3.5742758]
[1756997827623,2.168,4348.8,4348.7,0.8673]
[1756997828132,2.168,4348.7,4348.6,2.0586758]
[1756997828325,2.168,4348.7,4348.6,0.24]
[1756997829330,2.168,4348.7,4347.5,34.9488]
[1756997829331,2.168,4347.6,4347.5,3.12826237]
[1756997829524,2.168,4347.6,4347.5,0.24]
[1756997833926,2.168,4347.6,4347.5,0.8718]
[1756997834726,2.168,4347.6,4347.5,1.7551]
[1756997834939,2.168,4347.6,4347.5,0.24]
[1756997836823,2.168,4347.6,4347.5,2.3433]
[1756997837636,2.168,4347.6,4347.5,2.7197]
[1756997838028,0.615,4347.6,4347.5,2.7197]
[1756997838529,3.2078,4347.9,4347.8,2.1033]
[1756997839228,3.7949,4347.9,4347.8,2.1033]
[1756997839934,4.67,4347.9,4347.8,2.1033]
[1756997840124,5.2823,4347.9,4347.8,2.1033]
[1756997840323,5.2823,4347.9,4347.8,4.16241888]
[1756997840537,1.1994,4347.6,4347.5,1.7551]
[1756997840737,1.1994,4347.6,4347.5,2.3433]
[1756997841129,0.5871,4347.6,4347.5,2.7197]
[1756997842331,2.0745,4347.6,4347.5,2.3433]
[1756997842533,2.0745,4347.4,4347.1,0.8833]
[1756997842837,2.0745,4347.3,4347.2,2.3423]
[1756997844239,2.0745,4347.3,4347.2,1.459]
[1756997844540,2.0745,4347.3,4347.2,0.239]
[1756997845334,2.0745,4346.9,4346.3,3.18409884]
[1756997845636,4.4072,4346.7,4346.6,2.1033]
[1756997845938,4.4072,4346.7,4346.6,2.3433]
[1756997846440,3.7949,4346.7,4346.6,2.3433]
[1756997846939,3.7949,4346.7,4346.6,4.40509884]
[1756997847340,4.4072,4346.7,4346.6,2.3433]
[1756997847538,5.2823,4346.7,4346.6,0.24]
[1756997849537,3.2078,4346.7,4346.4,0.24]
[1756997849737,1.1994,4346.5,4346.4,0.24]
[1756997850042,2.0745,4346.5,4346.4,0.24]
[1756997850448,2.0745,4346.5,4346.4,1.7551]
[1756997852346,1.1994,4346.5,4346.4,1.7551]
[1756997853048,2.0745,4346.5,4346.4,1.7551]
[1756997853245,2.0745,4346.5,4346.4,0.24]
[1756997854046,2.0745,4346.5,4346.0,2.43819884]
[1756997854346,1.1994,4346.3,4346.2,0.6318]
[1756997854547,1.1994,4346.3,4346.2,2.1033]
[1756997856255,1.1994,4346.3,4346.2,4.16509884]
[1756997856748,1.1994,4346.3,4346.2,2.1033]
[1756997857156,1.1994,4346.3,4346.2,4.16509884]
[1756997857551,0.5871,4346.6,4346.5,2.4797]
[1756997857856,0.5871,4346.6,4346.5,2.7197]
[1756997858056,0.8751,4346.6,4346.4,2.94509884]
[1756997858257,0.5871,4346.5,4346.4,2.1033]
[1756997858453,2.0745,4347.0,4346.9,0.6318]
[1756997858759,2.0745,4347.0,4346.9,1.7551]
[1756997859459,1.1994,4347.0,4346.9,1.7551]
[1756997859658,2.0745,4347.0,4346.9,1.1233]
[1756997859859,0.5871,4346.8,4346.7,2.06122308]
[1756997860056,2.0745,4346.8,4346.7,3.52122308]
[1756997860653,2.0745,4346.8,4346.7,1.46]
[1756997861661,2.0745,4346.8,4346.7,0.24]
[1756997861960,5.2823,4346.8,4346.7,0.24]
[1756997862762,5.2823,4346.8,4346.6,0.24]
[1756997862763,2.1127,4346.7,4346.6,0.24]
[1756997863062,2.9679,4346.7,4346.6,0.24]
[1756997863856,0.5774,4346.3,4346.2,0.24]
[1756997864061,1.1924,4345.9,4345.6,4.94400641]
[1756997864263,4.7988,4345.7,4345.0,3.34352308]
[1756997864554,4.4002,4345.7,4344.8,2.06122308]
[1756997864754,1.591,4344.9,4344.8,2.99832308]
[1756997864954,1.591,4344.9,4344.8,0.24]
[1756997865159,1.1924,4344.9,4344.8,0.8425]
[1756997865459,1.1924,4344.6,4344.5,0.9371]
[1756997866158,4.4002,4344.6,4344.2,0.24]
[1756997866351,4.4002,4344.6,4344.4,0.01151807]
[1756997866755,4.4002,4344.6,4344.5,0.9371]
[1756997867253,4.4002,4344.6,4344.4,0.01151807]
[1756997867558,4.4002,4344.6,4343.8,0.9371]
[1756997867559,4.7872,4344.6,4344.5,0.01151807]
[1756997867957,3.2078,4344.6,4344.5,1.89631807]
[1756997868152,3.7852,4344.6,4344.5,2.50651613]
[1756997868355,3.7852,4344.6,4344.5,2.51803496]
[1756997868750,4.4002,4344.6,4344.5,1.20955303]
[1756997868955,0.9203,4344.9,4344.5,1.55475303]
[1756997869156,3.2078,4345.2,4344.5,1.55475303]
[1756997869356,0.9203,4345.1,4344.5,1.55475303]
[1756997869560,0.5774,4344.6,4344.5,1.55475303]
[1756997869759,0.9203,4344.9,4344.5,1.55475303]
[1756997869960,0.5774,4344.6,4344.5,1.55475303]
[1756997870155,0.9203,4344.9,4344.5,1.55475303]
[1756997870752,0.9203,4344.9,4344.6,0.9371]
[1756997870959,1.4977,4344.9,4344.8,2.1458]
[1756997871356,3.2078,4345.2,4344.8,2.1458]
[1756997871655,4.1281,4345.2,4344.9,0.9371]
[1756997871855,0.5774,4345.1,4345.0,0.03855303]
[1756997872057,2.1127,4345.1,4345.0,0.03855303]
[1756997873164,2.1127,4345.1,4345.0,0.04832325]
[1756997873461,2.1127,4345.1,4345.0,0.65082325]
[1756997873661,2.1127,4345.1,4345.0,1.5396]
[1756997873862,1.1924,4344.3,4344.2,2.06122308]
[1756997874059,2.1127,4344.3,4344.2,0.6025]
[1756997874369,2.1127,4344.3,4344.2,2.1458]
[1756997874865,1.878,4344.0,4343.9,1.4497]
[1756997875161,0.9203,4344.0,4343.9,1.4497]
[1756997875754,1.878,4344.0,4343.9,1.4497]
[1756997877156,4.1281,4344.4,4344.3,1.2087]
[1756997877366,4.1281,4344.4,4344.3,1.4487]
[1756997877668,5.3205,4344.4,4344.3,1.4487]
[1756997878064,5.3205,4344.4,4344.3,1.16580866]
[1756997878669,1.4977,4344.4,4344.3,1.77200866]
[1756997878865,1.273313,4344.4,4344.3,1.77200866]
[1756997879168,1.888313,4344.4,4344.3,1.77200866]
[1756997879364,1.888313,4344.4,4344.3,1.16580866]
[1756997879670,1.888313,4344.4,4344.3,1.77200866]
[1756997880369,1.273313,4344.4,4344.3,2.57070866]
[1756997880567,3.2078,4344.9,4344.3,2.57070866]
[1756997880864,5.3205,4344.9,4344.8,0.6025]
[1756997881172,5.3205,4344.9,4344.8,1.16680866]
[1756997882168,5.3205,4344.9,4344.8,0.56430866]
[1756997883473,9.3205,4344.9,4344.8,0.56430866]
[1756997883768,9.3205,4344.9,4344.3,0.24]
[1756997883968,5.3205,4344.4,4344.3,0.24]
[1756997885474,5.3205,4344.4,4343.6,3.2478638]
[1756997885674,1.4977,4343.8,4343.7,2.3858]
[1756997885870,3.2078,4344.4,4343.7,2.3858]
[1756997886175,2.1127,4343.8,4343.7,1.4487]
[1756997886374,2.1127,4343.8,4343.7,0.8425]
[1756997886672,2.1127,4343.8,4343.7,1.4487]
[1756997888375,2.1127,4343.8,4343.7,0.8425]
[1756997888974,1.8882763,4343.8,4343.7,0.8425]
[1756997889170,0.9203,4344.3,4343.8,0.9371]
[1756997889377,2.1127,4344.3,4344.2,1.2087]
[1756997889680,2.1127,4344.3,4344.2,2.3858]
[1756997889868,2.1127,4344.3,4343.8,2.06122308]
[1756997889869,2.1127,4343.9,4343.8,4.20702308]
[1756997890070,2.1127,4343.9,4343.8,2.3858]
[1756997890378,4.1281,4344.4,4343.8,5.56059311]
[1756997890574,3.7852,4344.4,4344.3,0.6025]
[1756997890778,4.4002,4344.4,4344.3,0.8435]
[1756997891273,5.3205,4344.4,4344.3,2.3868]
[1756997891468,5.3205,4344.4,4344.3,3.54382606]
[1756997892275,5.3205,4344.4,4344.3,2.60672606]
[1756997892977,5.3205,4344.4,4344.3,0.8435]
[1756997893174,5.3205,4344.4,4344.3,1.39802606]
[1756997893376,5.3205,4344.4,4344.3,3.45961597]
[1756997894079,5.3205,4344.4,4344.3,4.08061597]
[1756997894281,5.3205,4344.4,4343.9,0.9371]
[1756997894282,2.0639,4344.0,4343.9,2.87944325]
[1756997894475,3.22092606,4344.0,4343.9,3.87526864]
[1756997894674,7.22092606,4344.0,4343.9,2.06812539]
[1756997894881,2.0639,4344.0,4343.5,1.51312606]
[1756997895069,3.2078,4343.7,4343.6,2.356]
[1756997895269,3.2078,4343.7,4343.6,3.51302606]
[1756997895570,3.2078,4343.7,4343.6,2.356]
[1756997895774,3.2078,4343.7,4343.6,5.58115145]
[1756997896276,3.2078,4344.3,4343.6,5.58115145]
[1756997896474,3.2078,4344.3,4344.2,2.115]
[1756997896674,3.2078,4344.3,4344.2,2.356]
[1756997896878,3.2078,4344.3,4344.2,1.131]
[1756997897277,3.2516,4344.3,4344.2,1.131]
[1756997897478,3.2516,4344.3,4344.2,1.752]
[1756997897878,3.2516,4344.3,4344.2,2.356]
[1756997899977,3.2297,4344.3,4344.2,2.356]
[1756997900380,3.2516,4344.3,4344.2,2.356]
[1756997900582,3.2297,4344.3,4344.2,2.356]
[1756997901380,3.2078,4344.3,4344.2,2.356]
[1756997902180,3.2078,4344.9,4344.5,0.3561]
[1756997902382,3.2516,4344.9,4344.8,1.511]
[1756997902686,3.2078,4344.9,4344.8,3.51302606]
[1756997903073,0.0219,4345.1,4345.0,2.4711]
[1756997903383,0.0438,4345.1,4345.0,2.7121]
[1756997904079,0.0438,4345.1,4344.6,2.89415752]
[1756997904281,0.0575,4344.8,4344.7,1.13]
[1756997904478,0.0575,4344.8,4344.7,1.751]
[1756997904479,0.0438,4344.8,4344.7,1.751]
[1756997905885,0.0438,4344.8,4344.7,2.355]
[1756997907088,0.0219,4344.8,4344.7,2.355]
[1756997907382,3.2078,4344.9,4344.8,2.115]
[1756997908687,3.2078,4344.9,4344.8,2.1293033]
[1756997910083,3.2078,4344.9,4344.8,2.1436066]
[1756997910589,3.2516,4344.9,4344.8,0.9186066]
[1756997910882,3.2516,4344.9,4344.8,0.0286066]
[1756997910883,0.0575,4344.9,4344.8,0.0286066]
[1756997911282,3.2653,4344.9,4344.8,0.0286066]
[1756997911679,3.2653,4344.9,4344.7,0.24]
[1756997911883,3.2516,4344.9,4344.8,0.03147436]
[1756997912388,3.2653,4344.9,4344.8,0.03147436]
[1756997912587,3.5053,4344.9,4344.8,0.03147436]
[1756997912981,4.66232606,4344.9,4344.8,0.03147436]
[1756997913889,4.66232606,4344.9,4344.8,0.92147436]
[1756997914091,4.64862606,4344.9,4344.8,0.92147436]
[1756997914391,4.42232606,4344.9,4344.8,0.92147436]
[1756997914690,4.64862606,4344.9,4344.8,0.92147436]
[1756997914880,3.2297,4344.9,4344.8,2.14647436]
[1756997915083,4.38672606,4344.9,4344.8,2.14647436]
[1756997915283,4.42232606,4344.9,4344.8,0.03147436]
[1756997916294,4.40862606,4344.9,4344.8,1.54247436]
[1756997916788,4.40862606,4344.9,4344.8,2.14647436]
[1756997916988,4.40862606,4344.9,4344.8,0.92147436]
[1756997917685,4.42232606,4344.9,4344.8,0.92147436]
[1756997917882,4.42232606,4344.9,4344.8,0.03147436]
[1756997918089,4.42232606,4344.9,4344.8,0.92147436]
[1756997918388,4.66232606,4344.9,4344.8,0.01777436]
[1756997918588,4.66232606,4344.9,4344.8,0.03208003]
[1756997918781,4.66232606,4344.9,4344.8,0.92208003]
[1756997919187,4.42232606,4344.9,4344.8,0.92208003]
[1756997919381,3.2516,4344.9,4344.8,2.14708003]
[1756997919585,3.2297,4344.9,4344.8,2.14708003]
[1756997919786,3.2078,4344.9,4344.8,2.38708003]
[1756997920290,3.2078,4345.4,4345.3,1.225]
[1756997920593,3.2078,4346.1,4346.0,1.8671]
[1756997921289,3.2078,4346.1,4346.0,2.4711]
[1756997921490,3.2078,4346.1,4346.0,2.51744741]
[1756997922091,3.2078,4346.1,4346.0,2.52034872]
[1756997928095,3.2078,4346.6,4346.5,0.3601]
[1756997928291,3.2078,4346.6,4346.5,2.7032]
[1756997929193,3.2078,4346.6,4346.5,6.75244872]
[1756997929990,3.2078,4346.6,4346.5,2.75244872]
[1756997935304,3.2078,4346.6,4346.5,1.90364872]
[1756997935504,3.2078,4346.6,4346.5,1.56104872]
[1756997936501,3.2078,4346.6,4346.5,2.14264872]
[1756997939414,7.54804097,4346.6,4346.5,0.04924872]
[1756997939708,7.54804097,4346.6,4345.6,0.9127]
[1756997939900,3.2078,4345.7,4345.6,0.9127]
[1756997940505,3.2078,4345.7,4345.5,1.2688]
[1756997940506,3.4468,4345.7,4345.5,1.2688]
[1756997940807,4.11017097,4345.6,4345.5,1.2688]
[1756997941204,4.11017097,4345.6,4345.3,0.239]
[1756997941718,4.11017097,4345.6,4345.3,1.1517]
[1756997941920,4.11017097,4345.6,4345.3,0.239]
[1756997942218,4.11017097,4345.6,4345.4,0.9127]
[1756997943313,0.239,4345.5,4345.4,0.9127]
[1756997946011,0.239,4345.5,4345.4,1.4943]
[1756997947520,1.39593217,4345.5,4345.4,1.4943]
[1756997947820,0.6289,4345.1,4345.0,1.5475]
[1756997948018,1.78583217,4345.1,4345.0,1.5475]
[1756997949421,3.31553217,4345.1,4345.0,1.5475]
[1756997949812,3.31553217,4345.1,4345.0,2.4602]
[1756997950019,3.31553217,4345.1,4345.0,1.6458]
[1756997950615,0.9427,4344.6,4344.3,32.6737]
[1756997950821,3.31553217,4344.4,4344.3,32.6737]
[1756997951020,3.31553217,4344.4,4344.3,2.1041]
[1756997951524,3.52073536,4344.4,4344.3,1.1914]
[1756997954817,3.52073536,4344.4,4344.1,0.9042]
[1756997954818,3.52073536,4344.4,4343.6,0.9042]
[1756997955026,3.52453536,4343.8,4343.7,2.07]
[1756997955523,2.1624,4343.8,4343.7,2.07]
[1756997957817,2.1624,4343.8,4343.3,3.2078]
[1756997958023,2.1624,4343.4,4343.3,2.07]
[1756997958328,1.5299,4343.4,4343.3,2.308]
[1756997958524,0.6243,4343.4,4343.3,2.308]
[1756997958721,1.5299,4343.4,4343.3,2.308]
[1756997959228,1.2568,4342.9,4342.8,0.76360029]
[1756997959421,3.52453536,4342.9,4342.8,2.24500029]
[1756997960121,2.1624,4342.9,4342.8,2.24500029]
[1756997960526,3.52453536,4342.9,4342.8,2.24500029]
[1756997961424,3.52453536,4342.9,4342.8,0.17500029]
[1756997961731,3.52453536,4342.9,4342.8,0.76360029]
[1756997962425,2.1624,4342.9,4342.8,2.24500029]
[1756997963335,2.1624,4342.9,4342.8,1.34080029]
[1756997964127,2.1624,4342.9,4342.8,2.24500029]
[1756997964630,2.1624,4342.9,4342.8,0.76360029]
[1756997964826,0.6243,4342.6,4342.5,1.4814]
[1756997965030,1.5299,4342.6,4342.5,2.07]
[1756997965932,2.1624,4342.6,4342.5,1.1658]
[1756997969026,2.1624,4342.6,4342.5,2.07]
[1756997970838,1.5299,4342.6,4342.5,2.07]
[1756997971425,0.1151,4342.8,4342.5,2.07]
[1756997971626,1.0207,4342.8,4342.7,2.07]
[1756997971831,2.2775,4342.8,4342.7,1.1658]
[1756997972336,2.2775,4342.8,4342.6,0.238]
[1756997972337,2.1624,4342.1,4342.0,1.1658]
[1756997972538,2.1624,4342.1,4341.2,2.89277444]
[1756997972539,0.6243,4341.3,4341.2,1.1658]
[1756997972834,1.5299,4341.3,4341.2,2.308]
[1756997973539,1.5299,4341.3,4341.2,2.32141059]
[1756997974034,1.5299,4341.3,4341.2,2.33483122]
[1756997974833,0.9056,4341.9,4341.2,1.43063122]
[1756997975032,1.5299,4341.9,4341.8,1.1658]
[1756997975333,2.1624,4341.9,4341.8,0.238]
[1756997975531,2.1624,4341.9,4341.8,0.8266]
[1756997976130,2.1624,4341.9,4341.8,0.85343122]
[1756997976832,0.9056,4341.7,4341.3,0.3245]
[1756997977032,1.73966878,4341.8,4341.7,1.0384]
[1756997977333,2.37216878,4341.8,4341.7,1.2764]
[1756997978142,3.73430414,4341.8,4341.7,0.7572]
[1756997978936,2.37216878,4341.8,4341.7,0.7572]
[1756997979842,2.1624,4341.8,4341.7,0.7572]
[1756997980043,2.1624,4341.8,4341.7,0.238]
[1756997980245,3.52453536,4341.8,4341.7,0.238]
[1756997980741,2.1624,4341.8,4341.7,0.238]
[1756997981843,2.1624,4341.8,4341.7,0.7572]
[1756997982044,2.1624,4341.8,4341.7,1.2764]
[1756997982740,2.1624,4341.8,4341.7,0.7572]
[1756997983342,2.1624,4341.8,4341.7,0.238]
[1756997987245,2.1624,4341.8,4341.7,1.2416]
[1756997987438,0.8829,4341.9,4341.7,7.14765536]
[1756997987641,2.0441,4341.8,4341.7,1.2416]
[1756997987841,2.0441,4341.8,4341.7,0.7398]
[1756997988144,2.0441,4341.8,4341.7,0.238]
[1756997989341,2.52333536,4341.8,4341.7,0.238]
[1756997989536,3.40623536,4341.8,4341.7,0.238]
[1756997991049,2.0441,4341.8,4341.7,0.238]
[1756997991350,2.0441,4341.8,4341.7,1.2416]
[1756997991647,2.0441,4341.8,4341.7,0.7398]
[1756997991949,2.0441,4341.8,4341.7,0.238]
[1756997995052,2.0441,4341.8,4341.7,0.7398]
[1756997995553,0.8829,4341.8,4341.7,1.5552]
[1756997995750,1.4667,4341.8,4341.7,1.2416]
[1756997995946,0.8829,4341.8,4341.7,1.78552]
[1756997996146,0.998,4342.0,4341.9,1.3172]
[1756997996348,2.4989,4342.0,4341.9,1.0036]
[1756997998544,2.4989,4342.0,4341.9,0.5018]
[1756997998739,2.4989,4342.0,4341.7,0.238]
[1756998000555,2.4989,4342.0,4341.9,0.5018]
[1756998000752,0.1151,4342.0,4341.9,1.0036]
[1756998000949,0.5838,4342.7,4342.6,2.0073]
[1756998001147,0.3589,4343.5,4342.6,3.60743536]
[1756998001349,1.5201,4343.5,4343.4,0.5763]
[1756998001548,1.5201,4343.5,4343.4,0.238]
[1756998002052,1.5201,4343.5,4343.4,0.8143]
[1756998002251,1.5201,4343.5,4343.4,1.3836]
[1756998002556,1.1612,4343.5,4343.4,2.2453]
[1756998002849,2.0441,4343.5,4343.4,2.2453]
[1756998003152,2.3838,4343.5,4343.4,0.238]
[1756998003353,2.3838,4343.5,4343.0,3.2078]
[1756998003354,1.1612,4343.1,4343.0,3.2078]
[1756998003562,2.3838,4343.0,4342.6,0.238]
[1756998005046,2.3838,4343.0,4342.9,2.0073]
[1756998005246,1.65300616,4346.4,4342.9,2.0073]
[1756998005247,0.8829,4343.4,4343.3,1.1456]
[1756998005455,2.0441,4343.4,4343.3,0.8143]
[1756998005756,2.0441,4343.4,4343.3,0.238]
[1756998005952,0.8829,4342.9,4342.8,0.238]
[1756998006156,2.0441,4342.9,4342.8,0.238]
[1756998006356,7.40623536,4342.9,4342.8,0.238]
[1756998006845,0.3397,4343.0,4342.1,2.89168305]
[1756998006846,0.3397,4342.5,4342.1,1.36213536]
[1756998007051,3.2078,4342.6,4342.5,0.8617]
[1756998007259,3.7916,4342.6,4342.5,2.0073]
[1756998007458,1.4667,4342.6,4342.5,2.0073]
[1756998008248,3.2078,4343.2,4342.9,0.8617]
[1756998008453,0.8829,4343.7,4343.4,1.1456]
[1756998008655,0.8829,4343.7,4343.5,1.0997]
[1756998008855,1.4667,4343.7,4343.6,2.0073]
[1756998009055,3.2078,4343.8,4343.6,1.1456]
[1756998009360,3.2078,4344.3,4344.2,1.1456]
[1756998009560,5.2519,4344.3,4344.2,1.3836]
[1756998009959,2.0441,4344.3,4344.2,1.3836]
[1756998010163,2.0441,4344.3,4344.2,0.238]
[1756998014767,1.1452,4343.9,4343.8,0.238]
[1756998015064,5.2665,4343.9,4343.8,0.238]
[1756998015860,5.2665,4343.9,4342.8,32.6768]
[1756998015861,2.0587,4343.6,4343.5,0.238]
[1756998018467,1.1452,4343.6,4342.8,31.776]
[1756998018675,2.0587,4342.9,4342.8,31.776]
[1756998018868,2.0587,4342.9,4342.8,32.014]
[1756998020160,2.0587,4342.9,4342.8,32.9148]
[1756998020567,3.2078,4343.4,4342.8,32.9148]
[1756998020771,0.578,4343.3,4343.2,2.1118]
[1756998020977,0.578,4343.3,4343.2,2.3498]
[1756998022468,3.2078,4343.9,4343.5,0.3674]
[1756998022677,0.3397,4344.5,4343.9,0.9008]
[1756998022872,2.3984,4344.5,4344.4,0.6068]
[1756998023069,2.3984,4344.5,4344.4,0.238]
[1756998024269,1.1452,4344.2,4344.1,0.238]
[1756998024575,5.2665,4344.2,4344.1,0.238]
[1756998024765,5.2665,4344.2,4344.1,0.8448]
[1756998024970,5.2665,4344.2,4344.1,2.3498]
[1756998025870,5.2665,4344.2,4344.1,0.8448]
[1756998026069,5.2665,4344.2,4344.1,0.238]
[1756998028870,5.2665,4344.2,4344.1,0.8448]
[1756998029575,5.2665,4344.2,4343.8,0.9008]
[1756998029576,2.0587,4343.4,4343.3,2.1118]
[1756998029766,2.0587,4343.4,4343.3,1.449]
[1756998029961,2.0587,4343.4,4343.3,2.3498]
[1756998029962,0.578,4343.4,4343.3,2.3498]
[1756998030272,2.0587,4343.4,4343.3,2.3498]
[1756998030468,2.0587,4343.4,4343.3,1.449]
[1756998030865,2.0587,4343.4,4343.3,2.3498]
[1756998031067,0.3343,4344.0,4343.3,2.3498]
[1756998031277,1.4915,4343.9,4343.8,2.1118]
[1756998031576,1.4915,4343.9,4343.8,3.50695782]
[1756998031765,3.2078,4344.2,4343.8,2.60615782]
[1756998031968,3.7858,4344.2,4344.1,3.26895782]
[1756998032169,3.2078,4344.2,4344.1,3.26895782]
[1756998032573,5.2665,4344.2,4344.1,0.6068]
[1756998032773,5.2665,4344.2,4343.8,0.238]
[1756998032774,2.0587,4343.9,4343.8,0.238]
[1756998032967,3.21585782,4343.9,4343.8,0.238]
[1756998033568,2.0587,4343.9,4343.8,0.238]
[1756998033871,3.2078,4344.2,4343.8,0.238]
[1756998033872,2.0587,4344.2,4344.1,2.1118]
[1756998034071,1.1452,4343.8,4343.7,3.8146]
[1756998034271,2.0587,4343.8,4343.7,0.238]
[1756998034970,2.0587,4343.8,4343.7,1.449]
[1756998035179,2.0587,4343.8,4343.7,2.3498]
[1756998035977,2.0587,4343.8,4343.7,2.3621]
[1756998037379,2.0587,4343.8,4343.7,0.2503]
[1756998037672,2.0587,4343.8,4343.7,0.26470664]
[1756998038876,2.0587,4343.8,4343.7,0.02670664]
[1756998045374,2.0587,4343.8,4343.7,0.03394905]
[1756998046574,2.0587,4343.8,4343.7,0.61094905]
[1756998046781,1.4737,4343.8,4343.7,2.11264905]
[1756998047787,1.484,4344.1,4344.0,2.0787]
[1756998047980,2.0814,4344.1,4344.0,2.3167]
[1756998048380,2.0814,4344.1,4344.0,2.35064905]